fUSD/lending_fUSD_20260205
["ID","MTS","AMOUNT","RATE_DAILY","PERIOD"]
[404562932,1770294643438,-23407.50559422,0.00012876,2]
[404562934,1770294643448,-1032.6,0.00012891,2]
[404562935,1770294643458,-16527.72442726,0.00012932,2]
[404562936,1770294643468,-1032.6,0.00013165,2]
[404562937,1770294643477,-69412.00474236,0.0001318,2]
[404562938,1770294643487,-93916.9044,0.0001318,2]
[404562939,1770294643496,-204.69,0.00013245,2]
[404562940,1770294643506,-200.0,0.00013288,2]
[404562941,1770294643515,-200.0,0.00013288,2]
[404562942,1770294643525,-502.94499964,0.00013288,2]
[404562943,1770294643534,-361.09,0.00013303,2]
[404562944,1770294643544,-169.4141922,0.00013379,2]
[404562945,1770294643554,-1032.6,0.00013439,2]
[404562946,1770294643567,-152.0,0.00013531,4]
[404562947,1770294643576,-500.0,0.00013698,2]
[404562948,1770294643586,-502.58453595,0.00013698,2]
[404562949,1770294643595,-500.0,0.00013698,2]
[404562950,1770294643605,-500.0,0.00013698,2]
[404562951,1770294643615,-500.0,0.00013698,2]
[404562952,1770294643624,-500.0,0.00013698,2]
[404562953,1770294643633,-500.0,0.00013698,2]
[404562954,1770294643643,-500.0,0.00013698,2]
[404562955,1770294643652,-500.0,0.00013698,2]
[404562956,1770294643665,-500.0,0.00013698,2]
[404562957,1770294643674,-500.0,0.00013698,2]
[404562958,1770294643684,-500.0,0.00013698,2]
[404562959,1770294643694,-500.0,0.00013698,2]
[404562960,1770294643703,-500.0,0.00013698,2]
[404562961,1770294643713,-500.0,0.00013698,2]
[404562962,1770294643722,-500.0,0.00013698,2]
[404562963,1770294643732,-500.0,0.00013698,2]
[404562964,1770294643741,-500.0,0.00013698,2]
[404562965,1770294643751,-500.0,0.00013698,2]
[404562966,1770294643760,-244.78542289,0.00013698,2]
[404562967,1770294643770,-500.0,0.00013698,2]
[404562968,1770294643779,-500.0,0.00013698,2]
[404562969,1770294643789,-611.74702431,0.00013698,2]
[404562970,1770294643798,-438.26710356,0.00013698,2]
[404562971,1770294643808,-351.5182,0.00013698,2]
[404562972,1770294643820,-500.0,0.00013698,2]
[404562973,1770294643830,-500.0,0.00013698,2]
[404562974,1770294643839,-457.99797698,0.00013698,2]
[404562975,1770294643849,-189.57,0.00013699,2]
[404562976,1770294643859,-1032.6,0.00013713,2]
[404562977,1770294643868,-200.0,0.00013836,2]
[404562978,1770294643878,-200.0,0.00013836,2]
[404562979,1770294643888,-23407.50559422,0.00013881,2]
[404562980,1770294643897,-16527.72442726,0.00013925,2]
[404562981,1770294643907,-4881.0,0.00013951,2]
[404562982,1770294643918,-1032.6,0.00013987,2]
[404562983,1770294643928,-2805.729048,0.00014034,2]
[404562984,1770294643937,-1000.0,0.00014042,2]
[404562985,1770294643946,-163.85,0.00014047,2]
[404562986,1770294643956,-1032.6,0.00014261,2]
[404562987,1770294643966,-200.0,0.00014384,2]
[404562988,1770294643975,-200.0,0.00014384,2]
[404562989,1770294643985,-152.0,0.00014428,5]
[404562990,1770294643994,-1032.6,0.00014535,2]
[404562991,1770294644004,-173.07272258,0.000146,2]
[404562992,1770294644014,-500.0,0.000146,2]
[404562993,1770294644024,-500.0,0.000146,2]
[404562994,1770294644034,-500.0,0.000146,2]
[404562995,1770294644043,-500.0,0.000146,2]
[404562996,1770294644053,-500.0,0.000146,2]
[404562997,1770294644063,-500.0,0.000146,2]
[404562998,1770294644076,-500.0,0.000146,2]
[404562999,1770294644086,-500.0,0.000146,2]
[404563000,1770294644096,-500.0,0.000146,2]
[404563001,1770294644108,-500.0,0.000146,2]
[404563002,1770294644120,-500.0,0.000146,2]
[404563003,1770294644136,-500.0,0.000146,2]
[404563004,1770294644159,-500.0,0.000146,2]
[404563005,1770294644170,-500.0,0.000146,2]
[404563006,1770294644179,-151.0,0.00014634,2]
[404563007,1770294644188,-1032.6,0.00014809,2]
[404563008,1770294644198,-23407.50559422,0.00014886,2]
[404563009,1770294644207,-16527.72442726,0.00014919,2]
[404563010,1770294644217,-200.0,0.00014932,2]
[404563011,1770294644226,-200.0,0.00014932,2]
[404563012,1770294644235,-160.0,0.00014947,2]
[404563013,1770294644244,-250.0,0.00015,2]
[404563014,1770294644252,-29759.72262329,0.00015,2]
[404563015,1770294644261,-418.21759378,0.00015,2]
[404563016,1770294644271,-152.62,0.00015,2]
[404563017,1770294644280,-1032.6,0.00015083,2]
[404563018,1770294644290,-500.0,0.00015148,2]
[404563019,1770294644299,-1000.0,0.00015148,2]
[404563020,1770294644309,-347.37162909,0.00015148,2]
[404563021,1770294644321,-606.0,0.00015178,2]
[404563022,1770294644330,-1517.64,0.000153,2]
[404563023,1770294644340,-152.0,0.00015326,6]
[404563024,1770294644349,-1032.61715052,0.00015357,2]
[404563025,1770294644358,-508.83519453,0.000154,2]
[404563026,1770294644368,-200.0,0.0001548,2]
[404563027,1770294644378,-200.0,0.0001548,2]
[404563028,1770294644388,-152.0173956,0.00015518,2]
[404563029,1770294644398,-204.69,0.00015609,2]
[404563030,1770294644408,-361.09,0.00015646,2]
[404563031,1770294644418,-1500.0,0.00015696,2]
[404563032,1770294644428,-2805.729048,0.0001572,2]
[404563033,1770294644437,-500.0,0.00015793,2]
[404563034,1770294644446,-2046.60264728,0.00015807,2]
[404563035,1770294644456,-23407.50559422,0.0001589,2]
[404563036,1770294644466,-16527.72442726,0.00015913,2]
[404563037,1770294644475,-990.55073207,0.0001596,2]
[404563038,1770294644485,-957.19260386,0.00016,2]
[404563039,1770294644494,-320.47368523,0.00016,2]
[404563040,1770294644504,-5956.53345956,0.00016,2]
[404563041,1770294644514,-200.744485,0.00016,2]
[404563042,1770294644523,-200.0,0.00016028,2]
[404563043,1770294644532,-200.0,0.00016028,2]
[404563044,1770294644542,-152.0173956,0.00016073,2]
[404563045,1770294644551,-166.66,0.00016187,2]
[404563046,1770294644560,-152.0,0.00016223,7]
[404563047,1770294644574,-1291.24412758,0.00016244,2]
[404563048,1770294644584,-163.85,0.00016257,2]
[404563049,1770294644593,-244.610569,0.00016411,7]
[404563050,1770294644602,-500.0,0.00016437,2]
[404563051,1770294644612,-166.66,0.00016528,2]
[404563052,1770294644622,-200.0,0.00016576,2]
[404563053,1770294644631,-200.0,0.00016576,2]
[404563054,1770294644641,-152.0173956,0.00016627,2]
[404563055,1770294644650,-165.83,0.00016712,2]
[404563056,1770294644659,-951.124593,0.00016782,7]
[404563057,1770294644670,-166.66,0.00016869,2]
[404563058,1770294644680,-23407.50559422,0.00016895,2]
[404563059,1770294644690,-16527.72442726,0.00016906,2]
[404563060,1770294644700,-150.0,0.00016988,2]
[404563061,1770294644710,-1271.0,0.00016988,2]
[404563062,1770294644720,-917.0,0.00016988,2]
[404563063,1770294644729,-1205.0,0.00016988,2]
[404563064,1770294644739,-1411.0,0.00016988,2]
[404563065,1770294644748,-3491.028,0.00016988,2]
[404563066,1770294644758,-3254.0,0.00016988,2]
[404563067,1770294644767,-300.0,0.00017,2]
[404563068,1770294644777,-2034.15123261,0.00017,2]
[404563069,1770294644786,-500.0,0.00017,2]
[404563070,1770294644796,-500.0,0.00017,2]
[404563071,1770294644806,-500.0,0.00017,5]
[404563072,1770294644820,-500.0,0.00017056,2]
[404563073,1770294644831,-5000.0,0.00017099,2]
[404563074,1770294644842,-250.0,0.00017099,2]
[404563075,1770294644851,-250.0,0.00017099,2]
[404563076,1770294644861,-250.0,0.00017099,2]
[404563077,1770294644871,-250.0,0.00017099,2]
[404563078,1770294644881,-250.0,0.00017099,2]
[404563079,1770294644890,-250.0,0.00017099,2]
[404563080,1770294644900,-250.0,0.00017099,2]
[404563081,1770294644909,-250.0,0.00017099,2]
[404563082,1770294644918,-250.0,0.00017099,2]
[404563083,1770294644928,-250.0,0.00017099,2]
[404563084,1770294644937,-250.0,0.00017099,2]
[404563085,1770294644946,-322.6107,0.00017099,2]
[404563086,1770294644955,-5000.0,0.00017099,2]
[404563087,1770294644965,-445.7744494,0.00017099,2]
[404563088,1770294644974,-176.28122483,0.00017099,2]
[404563089,1770294644984,-200.0,0.00017099,2]
[404563090,1770294644993,-209.40437684,0.00017099,2]
[404563091,1770294645002,-174.61919141,0.00017099,2]
[404563092,1770294645012,-500.0,0.00017099,2]
[404563093,1770294645022,-512.54322178,0.00017099,2]
[404563094,1770294645031,-2000.0,0.00017099,2]
[404563095,1770294645040,-2000.0,0.00017099,2]
[404563096,1770294645049,-209.40437684,0.00017099,2]
[404563097,1770294645058,-2000.0,0.00017099,2]
[404563099,1770294645073,-2000.0,0.00017099,2]
[404563101,1770294645087,-2000.0,0.00017099,2]
[404563103,1770294645096,-151.0,0.00017099,2]
[404563104,1770294645106,-2000.0,0.00017099,2]
[404563105,1770294645115,-156.587,0.00017099,2]
[404563106,1770294645126,-2000.0,0.00017099,2]
[404563107,1770294645135,-162.380719,0.00017099,2]
[404563108,1770294645145,-2000.0,0.00017099,2]
[404563109,1770294645154,-157.87668982,0.00017099,2]
[404563110,1770294645165,-2000.0,0.00017099,2]
[404563111,1770294645175,-2000.0,0.00017099,2]
[404563112,1770294645184,-2000.0,0.00017099,2]
[404563113,1770294645193,-250.0,0.00017099,2]
[404563114,1770294645203,-250.0,0.00017099,2]
[404563115,1770294645213,-250.0,0.00017099,2]
[404563116,1770294645221,-250.0,0.00017099,2]
[404563117,1770294645231,-250.0,0.00017099,2]
[404563118,1770294645241,-250.0,0.00017099,2]
[404563119,1770294645251,-250.0,0.00017099,2]
[404563120,1770294645260,-250.0,0.00017099,2]
[404563121,1770294645270,-1428.38747117,0.00017099,2]
[404563122,1770294645280,-250.0,0.00017099,2]
[404563123,1770294645289,-743.50770149,0.00017099,2]
[404563124,1770294645299,-250.0,0.00017099,2]
[404563125,1770294645309,-250.0,0.00017099,2]
[404563126,1770294645321,-250.0,0.00017099,2]
[404563127,1770294645331,-250.0,0.00017099,2]
[404563128,1770294645340,-250.0,0.00017099,2]
[404563129,1770294645350,-578.20924308,0.00017099,2]
[404563130,1770294645361,-209.40437684,0.00017099,2]
[404563131,1770294645370,-199.92628631,0.00017099,2]
[404563132,1770294645379,-500.0,0.00017099,2]
[404563133,1770294645389,-500.0,0.00017099,2]
[404563134,1770294645398,-500.0,0.00017099,2]
[404563135,1770294645408,-500.0,0.00017099,2]
[404563136,1770294645417,-500.0,0.00017099,2]
[404563137,1770294645427,-500.0,0.00017099,2]
[404563138,1770294645437,-500.0,0.00017099,2]
[404563139,1770294645447,-494.97768813,0.00017099,2]
[404563140,1770294645457,-721.12765535,0.00017099,2]
[404563141,1770294645467,-277.35679052,0.00017099,2]
[404563142,1770294645478,-152.0,0.0001712,8]
[404563143,1770294645489,-200.0,0.00017124,2]
[404563144,1770294645499,-200.0,0.00017124,2]
[404563145,1770294645509,-217.15233878,0.00017154,2]
[404563146,1770294645520,-152.0173956,0.00017181,2]
[404563147,1770294645530,-225.18697532,0.00017209,2]
[404563148,1770294645542,-166.66,0.00017209,2]
[404563149,1770294645552,-200.0,0.0001721,2]
[404563150,1770294645562,-200.0,0.00017211,2]
[404563151,1770294645577,-1000.0,0.0001726,2]
[404563152,1770294645587,-233.51889341,0.00017264,2]
[404563153,1770294645598,-200.0,0.00017266,2]
[404563154,1770294645608,-242.15909246,0.00017319,2]
[404563155,1770294645618,-251.11897888,0.00017374,2]
[404563156,1770294645628,-2805.729048,0.00017405,2]
[404563157,1770294645637,-260.4103811,0.00017429,2]
[404563159,1770294645647,-773.71,0.00017454,2]
[404563160,1770294645656,-200.0,0.0001746,2]
[404563162,1770294645667,-270.0455652,0.00017484,2]
[404563164,1770294645677,-1000.0,0.00017534,2]
[404563165,1770294645687,-280.03725112,0.00017539,2]
[404563167,1770294645888,-166.66,0.0001755,2]
[404563168,1770294645898,-290.39862941,0.00017594,2]
[404563169,1770294645908,-200.0,0.0001762,2]
[404563170,1770294645918,-656.0,0.0001764,2]
[404563171,1770294645928,-5000.0,0.00017647,2]
[404563172,1770294645938,-5000.0,0.00017647,2]
[404563173,1770294645949,-200.0,0.00017647,2]
[404563174,1770294645960,-217.15233878,0.00017647,2]
[404563175,1770294645970,-181.08010149,0.00017647,2]
[404563176,1770294645980,-217.15233878,0.00017647,2]
[404563177,1770294645989,-1481.23780761,0.00017647,2]
[404563178,1770294645998,-771.01748645,0.00017647,2]
[404563179,1770294646007,-287.61899177,0.00017647,2]
[404563180,1770294646016,-301.1433787,0.00017649,2]
[404563181,1770294646026,-869.18,0.00017651,2]
[404563182,1770294646036,-200.0,0.00017665,2]
[404563183,1770294646046,-200.0,0.00017672,2]
[404563184,1770294646055,-200.0,0.00017672,2]
[404563185,1770294646065,-656.0,0.00017727,2]
[404563186,1770294646080,-152.0173956,0.00017735,2]
[404563187,1770294646090,-656.0,0.00017736,2]
[404563188,1770294646099,-656.0,0.00017773,2]
[404563189,1770294646109,-500.0,0.00017776,2]
[404563190,1770294646119,-436.0,0.00017808,2]
[404563191,1770294646130,-286.0,0.00017808,4]
[404563192,1770294646140,-1000.0,0.00017808,2]
[404563193,1770294646150,-200.0,0.00017855,2]
[404563194,1770294646159,-500.0,0.00017856,2]
[404563195,1770294646169,-500.0,0.00017856,2]
[404563196,1770294646180,-200.0,0.00017856,2]
[404563197,1770294646191,-436.0,0.00017863,2]
[404563198,1770294646201,-656.0,0.00017865,2]
[404563199,1770294646211,-166.66,0.00017891,2]
[404563200,1770294646221,-25000.0,0.00017891,3]
[404563201,1770294646231,-151.0,0.00017893,2]
[404563202,1770294646241,-153.0,0.00017893,2]
[404563203,1770294646253,-151.0,0.00017893,2]
[404563204,1770294646263,-153.0,0.00017893,2]
[404563205,1770294646273,-153.0,0.00017893,2]
[404563206,1770294646283,-153.0,0.00017893,2]
[404563207,1770294646293,-153.0,0.00017893,2]
[404563208,1770294646304,-153.0,0.00017893,2]
[404563209,1770294646315,-153.0,0.00017893,2]
[404563210,1770294646331,-27055.6114,0.000179,2]
[404563211,1770294646342,-1000.0,0.000179,2]
[404563212,1770294646353,-10000.0,0.000179,2]
[404563213,1770294646363,-25000.0,0.000179,3]
[404563214,1770294646374,-160.0,0.000179,3]
[404563215,1770294646385,-9068.51831638,0.000179,3]
[404563216,1770294646395,-16527.72442726,0.000179,2]
[404563217,1770294646404,-23407.50559422,0.000179,2]
[404563218,1770294646415,-169.4141922,0.000179,2]
[404563219,1770294646425,-411.07033882,0.000179,2]
[404563220,1770294646436,-15261.0,0.000179,2]
[404563221,1770294646446,-436.0,0.00017918,2]
[404563222,1770294646457,-1101.54215647,0.0001797,2]
[404563223,1770294646467,-1000.0,0.0001797,2]
[404563224,1770294646476,-1000.0,0.0001797,2]
[404563225,1770294646498,-1000.0,0.0001797,2]
[404563226,1770294646519,-1000.0,0.0001797,2]
[404563227,1770294646528,-1000.0,0.0001797,2]
[404563228,1770294646539,-1000.0,0.0001797,2]
[404563229,1770294646550,-1000.0,0.0001797,2]
[404563230,1770294646560,-1000.0,0.0001797,2]
[404563231,1770294646575,-1000.0,0.0001797,2]
[404563232,1770294646586,-1000.0,0.0001797,2]
[404563233,1770294646595,-1000.0,0.0001797,2]
[404563234,1770294646608,-506.851,0.0001797,2]
[404563235,1770294646628,-436.0,0.00017972,2]
[404563236,1770294646650,-500.0,0.00017973,2]
[404563237,1770294646675,-500.0,0.00017973,2]
[404563238,1770294646696,-500.0,0.00017973,2]
[404563239,1770294646716,-500.0,0.00017973,2]
[404563240,1770294646735,-500.0,0.00017973,2]
[404563241,1770294646756,-561.5530591,0.00017973,2]
[404563242,1770294646769,-500.0,0.00017973,2]
[404563243,1770294646781,-500.0,0.00017973,2]
[404563244,1770294646794,-500.0,0.00017973,2]
[404563245,1770294646805,-500.0,0.00017973,2]
[404563246,1770294646822,-500.0,0.00017973,2]
[404563247,1770294646833,-500.0,0.00017973,2]
[404563248,1770294646844,-500.0,0.00017973,2]
[404563249,1770294646857,-500.0,0.00017973,2]
[404563250,1770294646868,-500.0,0.00017973,2]
[404563251,1770294646878,-500.0,0.00017973,2]
[404563252,1770294646888,-500.0,0.00017973,2]
[404563253,1770294646900,-160.11845722,0.00017973,2]
[404563254,1770294646922,-500.0,0.00017973,2]
[404563255,1770294646933,-500.0,0.00017973,2]
[404563256,1770294646944,-309.44398841,0.00017973,2]
[404563257,1770294646956,-500.0,0.00017973,2]
[404563258,1770294646970,-500.0,0.00017973,2]
[404563259,1770294646984,-500.0,0.00017973,2]
[404563260,1770294646995,-520.97702983,0.00017973,2]
[404563261,1770294647007,-500.0,0.00017973,2]
[404563262,1770294647019,-500.0,0.00017973,2]
[404563263,1770294647030,-500.0,0.00017973,2]
[404563264,1770294647041,-500.0,0.00017973,2]
[404563265,1770294647051,-500.0,0.00017973,2]
[404563266,1770294647061,-500.0,0.00017973,2]
[404563267,1770294647079,-500.0,0.00017973,2]
[404563268,1770294647089,-500.0,0.00017973,2]
[404563269,1770294647099,-500.0,0.00017973,2]
[404563270,1770294647109,-500.0,0.00017973,2]
[404563271,1770294647121,-500.0,0.00017973,2]
[404563272,1770294647131,-502.08032841,0.00017973,2]
[404563273,1770294647141,-500.0,0.00017973,2]
[404563274,1770294647151,-500.0,0.00017973,2]
[404563275,1770294647162,-500.0,0.00017973,2]
[404563276,1770294647172,-262.39107038,0.00017973,2]
[404563277,1770294647183,-500.0,0.00017973,2]
[404563278,1770294647192,-500.0,0.00017973,2]
[404563279,1770294647203,-500.0,0.00017973,2]
[404563280,1770294647212,-502.60776792,0.00017982,2]
[404563281,1770294647222,-93345.42532855,0.0001799,3]
[404563282,1770294647232,-35113.88286834,0.0001799,2]
[404563283,1770294647242,-1000.0,0.00017996,2]
[404563284,1770294647252,-256.366,0.00017996,2]
[404563285,1770294647261,-300.0,0.00017999,2]
[404563286,1770294647271,-300.0,0.00017999,2]
[404563287,1770294647281,-500.0,0.00017999,2]
[404563288,1770294647291,-500.0,0.00017999,2]
[404563289,1770294647301,-500.0,0.00017999,2]
[404563290,1770294647311,-500.0,0.00017999,2]
[404563291,1770294647325,-500.0,0.00017999,2]
[404563292,1770294647334,-448.31,0.00017999,2]
[404563293,1770294647344,-300.0,0.00017999,2]
[404563294,1770294647355,-90771.7006939,0.00017999,2]
[404563295,1770294647365,-11368.0986229,0.00017999,2]
[404563296,1770294647375,-300.0,0.00017999,2]
[404563297,1770294647385,-666.0,0.00017999,2]
[404563298,1770294647395,-24542.2740114,0.00017999,2]
[404563299,1770294647405,-305.85808466,0.00017999,2]
[404563300,1770294647414,-300.0,0.00017999,2]
[404563301,1770294647424,-666.0,0.00017999,2]
[404563302,1770294647434,-284.80146065,0.00018,2]
[404563303,1770294647444,-1588738.50648886,0.00018,2]
[404563304,1770294647453,-306.82753306,0.00018,2]
[404563305,1770294647463,-1459388.25458454,0.00018,2]
[404563306,1770294647483,-697.0,0.00018,2]
[404563307,1770294647575,-7633.13592568,0.00018,2]
[404563308,1770294647594,-279.66414692,0.00018,2]
[404563309,1770294647605,-998.52118926,0.00018,2]
[404563310,1770294647647,-1819.1209591,0.00018,2]
[404563311,1770294647659,-1902.07,0.00018,2]
[404563312,1770294647947,-292.93358606,0.00018,2]
[404563313,1770294647959,-414121.38388079,0.00018,2]
[404563314,1770294647971,-1130.40073013,0.00018,2]
[404563315,1770294647983,-177876.53944163,0.00018,2]
[404563316,1770294647994,-1379.33331975,0.00018,2]
[404563317,1770294648006,-6977.9,0.00018,2]
[404563318,1770294648018,-557.368,0.00018,2]
[404563319,1770294648030,-602.20532713,0.00018,2]
[404563320,1770294648042,-1385.7938432,0.00018,2]
[404563321,1770294648186,-255.75759708,0.00018,2]
[404563322,1770294648373,-632.35968347,0.00018,2]
[404563323,1770294648392,-13876.63765943,0.00018,2]
[404563324,1770294648435,-11207.88667791,0.00018,2]
[404563325,1770294648663,-1328.30688127,0.00018,2]
[404563385,1770295039802,630.12930775,0.00021,30]
[404563524,1770295592740,1600.0,7.815e-05,2]
[404563526,1770295627290,200.0,0.00021,30]
[404563798,1770295832378,-293.78971733,8.122e-05,2]
[404563799,1770295832389,-772.60819148,8.122e-05,2]
[404563800,1770295832400,-250.0,8.122e-05,2]
[404563801,1770295832411,-1232.94,8.123e-05,2]
[404563802,1770295832422,-250.0,8.152e-05,2]
[404563803,1770295832432,-426.0,8.226e-05,2]
[404563804,1770295832444,-1200.0,8.226e-05,2]
[404563805,1770295832459,-9869.81,8.227e-05,2]
[404563806,1770295832470,-2486.03032258,8.45e-05,2]
[404563807,1770295832480,-168.15,8.488e-05,2]
[404563808,1770295832492,-500.0,8.542e-05,2]
[404563809,1770295832503,-299.99,8.542e-05,2]
[404563810,1770295832514,-500.0,8.544e-05,2]
[404563811,1770295832526,-150.99,8.545e-05,2]
[404563812,1770295832537,-150.99,8.545e-05,2]
[404563813,1770295832547,-150.0,8.545e-05,2]
[404563815,1770295832558,-55893.1446265,8.546e-05,2]
[404563817,1770295832568,-6655.19,8.546e-05,2]
[404563819,1770295832579,-999.99,8.546e-05,2]
[404563820,1770295832589,-9999.99,8.546e-05,2]
[404563821,1770295832599,-9999.99,8.561e-05,2]
[404563822,1770295832610,-9258.86,8.561e-05,2]
[404563823,1770295832624,-3847.96,8.561e-05,2]
[404563824,1770295832634,-9999.99,8.561e-05,2]
[404563825,1770295832645,-4999.99,8.561e-05,2]
[404563826,1770295832655,-203.3499,8.562e-05,2]
[404563827,1770295832665,-9999.99,8.562e-05,2]
[404563828,1770295832675,-262.0,8.563e-05,2]
[404563829,1770295832686,-8243.01,8.573e-05,2]
[404563830,1770295832696,-793.0,8.578e-05,2]
[404563831,1770295832707,-429.0,8.58e-05,2]
[404563832,1770295832717,-504.3066338,8.587e-05,2]
[404563833,1770295832727,-208.0,8.598e-05,2]
[404563834,1770295832740,-2500.0,8.754e-05,2]
[404563835,1770295832751,-500.0,8.755e-05,2]
[404563836,1770295832761,-28923.9105,8.756e-05,2]
[404563837,1770295832771,-1600.0,8.791e-05,2]
[404563838,1770295832781,-1002.5,8.855e-05,2]
[404563839,1770295832792,-1951.678,8.855e-05,2]
[404563840,1770295832802,-150.384,8.855e-05,2]
[404563841,1770295832816,-27055.6114,8.857e-05,2]
[404563842,1770295832826,-206.88,8.921e-05,2]
[404563843,1770295832837,-543.70924244,8.934e-05,2]
[404563844,1770295832847,-300.0,8.934e-05,2]
[404563845,1770295832857,-300.0,8.934e-05,2]
[404563846,1770295832867,-300.0,8.934e-05,2]
[404563847,1770295832878,-283.66976535,8.934e-05,2]
[404563848,1770295832888,-250.0,8.934e-05,2]
[404563849,1770295832899,-2099.3202,8.957e-05,2]
[404563850,1770295832909,-500.0,9.028e-05,2]
[404563851,1770295832919,-1680.0,9.048e-05,2]
[404563852,1770295832929,-200.0,9.055e-05,2]
[404563853,1770295832940,-201.77401449,9.055e-05,2]
[404563854,1770295832949,-150.0,9.055e-05,2]
[404563855,1770295832960,-150.0,9.055e-05,2]
[404563856,1770295832970,-150.0,9.055e-05,2]
[404563857,1770295832980,-939.31489772,9.064e-05,2]
[404563858,1770295832991,-168.15,9.094e-05,2]
[404563859,1770295833001,-150.0,9.11e-05,2]
[404563860,1770295833014,-150.0,9.11e-05,2]
[404563861,1770295833025,-150.0,9.11e-05,2]
[404563862,1770295833035,-1002.5,9.128e-05,2]
[404563863,1770295833046,-157.81285231,9.165e-05,2]
[404563864,1770295833056,-150.0,9.165e-05,2]
[404563865,1770295833067,-150.0,9.219e-05,2]
[404563866,1770295833077,-266.00716112,9.274e-05,2]
[404563867,1770295833088,-500.0,9.302e-05,2]
[404563868,1770295833099,-575.45247827,9.386e-05,2]
[404563869,1770295833109,-255.0,9.399e-05,2]
[404563870,1770295833119,-1002.5,9.402e-05,2]
[404563871,1770295833130,-500.0,9.467e-05,2]
[404563872,1770295833141,-500.0,9.467e-05,2]
[404563873,1770295833151,-500.0,9.467e-05,2]
[404563874,1770295833162,-151.68281621,9.467e-05,2]
[404563875,1770295833173,-174.11816518,9.467e-05,2]
[404563876,1770295833183,-500.0,9.522e-05,2]
[404563877,1770295833194,-505.36603291,9.522e-05,2]
[404563878,1770295833204,-633.57498961,9.522e-05,2]
[404563879,1770295833214,-500.0,9.576e-05,2]
[404563880,1770295833224,-500.0,9.577e-05,2]
[404563881,1770295833235,-500.0,9.631e-05,2]
[404563882,1770295833248,-1002.5,9.676e-05,2]
[404563883,1770295833259,-563.96761622,9.686e-05,2]
[404563884,1770295833268,-168.15,9.7e-05,2]
[404563885,1770295833278,-1600.0,9.768e-05,2]
[404563886,1770295833287,-500.0,9.85e-05,2]
[404563887,1770295833298,-1002.5,9.95e-05,2]
[404563888,1770295833309,-2351.0,9.953e-05,2]
[404563889,1770295833320,-151.0,0.0001,2]
[404563890,1770295833330,-151.0,0.0001,2]
[404563891,1770295833633,-151.0,0.0001,2]
[404563892,1770295833645,-151.0,0.0001,2]
[404563893,1770295833655,-151.0,0.0001,2]
[404563894,1770295833666,-151.0,0.0001,2]
[404563895,1770295833681,-151.0,0.0001,2]
[404563896,1770295833692,-151.0,0.0001,2]
[404563897,1770295833703,-151.0,0.0001,2]
[404563898,1770295833714,-151.0,0.0001,2]
[404563899,1770295833725,-151.0,0.0001,2]
[404563900,1770295833736,-151.0,0.0001,2]
[404563901,1770295833747,-151.0,0.0001,2]
[404563902,1770295833758,-151.0,0.0001,2]
[404563903,1770295833769,-151.0,0.0001,2]
[404563904,1770295833780,-151.0,0.0001,2]
[404563905,1770295833790,-151.0,0.0001,2]
[404563906,1770295833800,-151.0,0.0001,2]
[404563907,1770295833810,-151.0,0.0001,2]
[404563908,1770295833821,-151.0,0.0001,2]
[404563909,1770295833831,-500.0,0.00010124,2]
[404563910,1770295833841,-2486.03032258,0.00010153,2]
[404563911,1770295833851,-1002.5,0.00010224,2]